fUSD/lending_fUSD_20250906
["ID","MTS","AMOUNT","RATE_DAILY","PERIOD"]
[383937004,1757185844046,-1354.0,0.00027817,3]
[383937005,1757185844056,-567.0,0.00027817,3]
[383937006,1757185844065,-11429.0855531,0.00027817,2]
[383937007,1757185844076,-355.04,0.00027818,2]
[383937008,1757185844087,-151.0,0.00027818,2]
[383937009,1757185844097,-496.588522,0.00027818,7]
[383937010,1757185844108,-496.588522,0.00027818,7]
[383937011,1757185844119,-496.588522,0.00027818,7]
[383937012,1757185844129,-496.588522,0.00027818,7]
[383937013,1757185844140,-1967.77381763,0.00027827,8]
[383937014,1757185844150,-1418.50300609,0.0002783,2]
[383937015,1757185844160,-384.56981064,0.00027945,3]
[383937016,1757185844172,-150.0,0.00027958,2]
[383937017,1757185844182,-150.0,0.00027958,2]
[383937018,1757185844192,-500.0,0.00027958,2]
[383937019,1757185844202,-500.0,0.00027958,2]
[383937020,1757185844212,-150.43454314,0.00027958,2]
[383937021,1757185844222,-500.0,0.00027958,2]
[383937022,1757185844232,-150.0,0.00027958,2]
[383937023,1757185844243,-150.0,0.00027958,2]
[383937024,1757185844253,-150.0,0.00027958,2]
[383937025,1757185844264,-150.12073758,0.00027958,2]
[383937026,1757185844274,-500.0,0.00027958,2]
[383937027,1757185844284,-11429.0855531,0.00027966,2]
[383937028,1757185844295,-1418.50300609,0.00027966,2]
[383937029,1757185844305,-151.0,0.00027976,7]
[383937030,1757185844315,-731.952873,0.00027976,7]
[383937031,1757185844325,-731.952873,0.00027976,7]
[383937032,1757185844335,-731.952873,0.00027976,7]
[383937033,1757185844345,-731.952873,0.00027976,7]
[383937034,1757185844355,-151.0,0.00027976,7]
[383937035,1757185844369,-4544.222326,0.00027976,7]
[383937036,1757185844379,-4544.222326,0.00027976,7]
[383937037,1757185844389,-151.0,0.00027976,7]
[383937038,1757185844399,-151.0,0.00027976,7]
[383937039,1757185844411,-4544.222326,0.00027976,7]
[383937040,1757185844422,-4544.222326,0.00027976,7]
[383937041,1757185844433,-151.0,0.00027976,7]
[383937042,1757185844446,-151.0,0.00027976,7]
[383937043,1757185844457,-21634.99557546,0.00027976,2]
[383937044,1757185844468,-2000.0,0.00027979,5]
[383937045,1757185844478,-346.18,0.00028,7]
[383937046,1757185844489,-1040.24,0.00028,7]
[383937047,1757185844499,-3292.0,0.00028023,2]
[383937048,1757185844509,-302.97,0.00028037,2]
[383937049,1757185844519,-500.0,0.00028091,3]
[383937050,1757185844529,-1096.0,0.00028091,3]
[383937051,1757185844540,-500.0,0.00028091,3]
[383937052,1757185844551,-500.0,0.00028091,3]
[383937053,1757185844561,-500.0,0.00028091,2]
[383937054,1757185844571,-469.01255377,0.00028091,3]
[383937055,1757185844580,-500.0,0.00028091,3]
[383937056,1757185844591,-500.0,0.00028091,3]
[383937057,1757185844601,-500.0,0.00028091,3]
[383937058,1757185844611,-1311.0,0.00028091,3]
[383937059,1757185844621,-500.0,0.00028091,3]
[383937060,1757185844631,-1354.0,0.00028091,3]
[383937061,1757185844641,-567.0,0.00028091,3]
[383937062,1757185844651,-196.796796,0.00028219,7]
[383937063,1757185844661,-11429.0855531,0.00028222,2]
[383937064,1757185844671,-150.0,0.00028232,2]
[383937065,1757185844681,-253.51431984,0.00028232,2]
[383937066,1757185844692,-500.0,0.00028232,2]
[383937067,1757185844702,-500.0,0.00028232,2]
[383937068,1757185844713,-500.0,0.00028232,2]
[383937069,1757185844724,-150.0,0.00028232,2]
[383937070,1757185844735,-210.7891279,0.00028232,2]
[383937071,1757185844745,-150.88004069,0.00028232,2]
[383937072,1757185844755,-500.0,0.00028232,2]
[383937073,1757185844765,-600.0,0.00028253,2]
[383937074,1757185844775,-500.0,0.00028365,2]
[383937075,1757185844785,-500.0,0.00028365,3]
[383937076,1757185844795,-1096.0,0.00028365,3]
[383937077,1757185844805,-500.0,0.00028365,3]
[383937078,1757185844815,-500.0,0.00028365,3]
[383937079,1757185844824,-500.0,0.00028365,2]
[383937080,1757185844835,-500.0,0.00028365,3]
[383937081,1757185844845,-500.0,0.00028365,3]
[383937082,1757185844855,-500.0,0.00028365,3]
[383937083,1757185844866,-1311.0,0.00028365,3]
[383937084,1757185844876,-500.0,0.00028365,3]
[383937085,1757185844886,-1354.0,0.00028365,3]
[383937086,1757185844896,-567.0,0.00028365,3]
[383937087,1757185844906,-1418.50300609,0.00028378,2]
[383937088,1757185844915,-150.0,0.00028506,2]
[383937089,1757185844928,-500.0,0.00028506,2]
[383937090,1757185844938,-500.0,0.00028506,2]
[383937091,1757185844949,-500.0,0.00028506,2]
[383937092,1757185844959,-172.17296631,0.00028506,2]
[383937093,1757185844969,-500.0,0.00028506,2]
[383937094,1757185844979,-151.0,0.00028506,2]
[383937095,1757185844989,-496.588522,0.00028506,7]
[383937096,1757185845000,-496.588522,0.00028506,7]
[383937097,1757185845010,-496.588522,0.00028506,7]
[383937098,1757185845020,-496.588525,0.00028506,7]
[383937099,1757185845031,-2500.0,0.00028527,5]
[383937100,1757185845041,-277.43540682,0.00028606,2]
[383937101,1757185845052,-200.0,0.0002862,2]
[383937102,1757185845062,-200.0,0.0002862,2]
[383937103,1757185845073,-500.0,0.00028639,3]
[383937104,1757185845083,-1096.0,0.00028639,3]
[383937105,1757185845093,-343.76896815,0.00028639,3]
[383937106,1757185845103,-346.91969704,0.00028639,3]
[383937107,1757185845114,-500.0,0.00028639,2]
[383937108,1757185845124,-237.05109254,0.00028639,3]
[383937109,1757185845134,-500.0,0.00028639,3]
[383937110,1757185845145,-500.0,0.00028639,3]
[383937111,1757185845155,-1311.0,0.00028639,3]
[383937112,1757185845165,-500.0,0.00028639,3]
[383937113,1757185845175,-1354.0,0.00028639,3]
[383937114,1757185845185,-567.0,0.00028639,3]
[383937115,1757185845195,-11429.0855531,0.0002867,2]
[383937116,1757185845205,-150.0,0.00028685,2]
[383937117,1757185845216,-1418.50300609,0.0002877,2]
[383937118,1757185845226,-211.77691621,0.0002878,2]
[383937119,1757185845236,-500.0,0.0002878,2]
[383937120,1757185845246,-500.0,0.0002878,2]
[383937121,1757185845256,-500.0,0.0002878,2]
[383937122,1757185845266,-500.0,0.0002878,2]
[383937123,1757185845275,-355.04,0.00028788,2]
[383937124,1757185845285,-600.0,0.00028801,2]
[383937125,1757185845295,-200.0,0.00028906,2]
[383937126,1757185845306,-200.0,0.00028906,2]
[383937127,1757185845316,-500.0,0.00028913,3]
[383937128,1757185845326,-1096.0,0.00028913,3]
[383937129,1757185845336,-500.0,0.00028913,2]
[383937131,1757185845348,-500.0,0.00028913,3]
[383937133,1757185845359,-467.06704154,0.00028913,3]
[383937135,1757185845369,-1311.0,0.00028913,3]
[383937137,1757185845379,-500.0,0.00028913,3]
[383937139,1757185845389,-1354.0,0.00028913,3]
[383937141,1757185845398,-567.0,0.00028913,3]
[383937143,1757185845408,-351.32,0.00028986,2]
[383937145,1757185845418,-11429.0855531,0.00029043,2]
[383937147,1757185845430,-1418.50300609,0.00029043,2]
[383937148,1757185845440,-21634.99557546,0.00029053,2]
[383937149,1757185845450,-500.0,0.00029054,2]
[383937151,1757185845460,-500.0,0.00029054,2]
[383937153,1757185845471,-439.26496662,0.00029054,2]
[383937155,1757185845481,-500.0,0.00029054,2]
[383937157,1757185845491,-3000.0,0.00029075,5]
[383937159,1757185845502,-155.69167245,0.00029181,2]
[383937161,1757185845513,-500.0,0.00029187,3]
[383937164,1757185845526,-1096.0,0.00029187,3]
[383937165,1757185845536,-500.0,0.00029187,2]
[383937166,1757185845546,-500.0,0.00029187,3]
[383937167,1757185845557,-1311.0,0.00029187,3]
[383937168,1757185845568,-500.0,0.00029187,3]
[383937169,1757185845577,-1354.0,0.00029187,3]
[383937170,1757185845587,-567.0,0.00029187,3]
[383937171,1757185845597,-200.0,0.00029195,2]
[383937172,1757185845607,-200.0,0.00029195,2]
[383937173,1757185845619,-11429.0855531,0.000292,2]
[383937174,1757185845629,-346.18,0.000292,7]
[383937175,1757185845641,-1040.24,0.000292,7]
[383937176,1757185845651,-4544.222326,0.0002921,7]
[383937177,1757185845661,-4544.222326,0.0002921,7]
[383937178,1757185845671,-151.0,0.0002921,7]
[383937179,1757185845681,-151.0,0.0002921,7]
[383937180,1757185845691,-4544.222326,0.0002921,7]
[383937181,1757185845702,-4544.222326,0.0002921,7]
[383937182,1757185845713,-236.42,0.00029276,30]
[383937183,1757185845723,-514.73,0.00029276,30]
[383937184,1757185845733,-302.97,0.00029311,2]
[383937185,1757185845743,-166.21530277,0.00029328,2]
[383937186,1757185845752,-500.0,0.00029328,2]
[383937187,1757185845764,-360.06085909,0.00029328,2]
[383937188,1757185845774,-600.0,0.00029349,2]
[383937189,1757185845784,-731.952873,0.0002937,7]
[383937190,1757185845794,-731.952873,0.0002937,7]
[383937191,1757185845804,-731.952873,0.0002937,7]
[383937192,1757185845815,-731.952873,0.0002937,7]
[383937193,1757185845825,-151.0,0.0002937,7]
[383937194,1757185845835,-1418.50300609,0.00029451,2]
[383937195,1757185845844,-500.0,0.00029461,3]
[383937196,1757185845854,-1096.0,0.00029461,3]
[383937197,1757185845864,-500.0,0.00029461,2]
[383937198,1757185845875,-621.79086371,0.00029461,3]
[383937199,1757185845885,-1311.0,0.00029461,3]
[383937200,1757185845895,-500.0,0.00029461,3]
[383937201,1757185845905,-1354.0,0.00029461,3]
[383937202,1757185845915,-567.0,0.00029461,3]
[383937203,1757185845925,-200.0,0.00029487,2]
[383937204,1757185845934,-168.73,0.00029494,2]
[383937205,1757185845944,-500.0,0.00029602,2]
[383937206,1757185845954,-151.0,0.00029602,7]
[383937207,1757185845964,-1882.57619494,0.00029605,2]
[383937208,1757185845973,-11429.0855531,0.00029615,2]
[383937209,1757185845983,-3546.13634117,0.00029623,5]
[383937210,1757185845993,-6696.34167,0.00029625,2]
[383937211,1757185846003,-5134.0,0.00029652,5]
[383937212,1757185846012,-166.66,0.00029703,2]
[383937213,1757185846022,-500.0,0.00029735,2]
[383937214,1757185846031,-500.0,0.00029735,3]
[383937215,1757185846042,-1096.0,0.00029735,3]
[383937216,1757185846052,-500.0,0.00029735,2]
[383937217,1757185846061,-1311.0,0.00029735,3]
[383937218,1757185846071,-500.0,0.00029735,3]
[383937219,1757185846080,-1354.0,0.00029735,3]
[383937220,1757185846090,-567.0,0.00029735,3]
[383937221,1757185846099,-1418.50300609,0.00029748,2]
[383937222,1757185846110,-355.04,0.00029759,2]
[383937223,1757185846120,-200.0,0.00029782,2]
[383937224,1757185846130,-500.0,0.00029876,2]
[383937225,1757185846139,-600.0,0.00029897,2]
[383937227,1757185846149,-335.81,0.00030009,3]
[383937229,1757185846158,-1096.0,0.00030009,3]
[383937230,1757185846168,-500.0,0.00030009,2]
[383937232,1757185846177,-1311.0,0.00030009,3]
[383937234,1757185846186,-500.0,0.00030009,3]
[383937237,1757185846196,-1354.0,0.00030009,3]
[383937239,1757185846205,-567.0,0.00030009,3]
[383937241,1757185846215,-11429.0855531,0.00030021,2]
[383937243,1757185846224,-151.0,0.00030031,7]
[383937245,1757185846234,-160.0,0.00030031,14]
[383937247,1757185846243,-160.0,0.00030031,14]
[383937249,1757185846252,-160.0,0.00030031,14]
[383937251,1757185846262,-160.0,0.00030031,14]
[383937253,1757185846271,-151.0,0.00030031,7]
[383937255,1757185846280,-160.0,0.00030031,14]
[383937257,1757185846291,-160.0,0.00030031,14]
[383937259,1757185846301,-160.0,0.00030031,14]
[383937261,1757185846310,-160.0,0.00030031,14]
[383937263,1757185846319,-151.0,0.00030031,7]
[383937275,1757185846437,-160.0,0.00030031,14]
[383937277,1757185846447,-160.0,0.00030031,14]
[383937279,1757185846457,-160.0,0.00030031,14]
[383937280,1757185846469,-160.0,0.00030031,14]
[383937282,1757185846482,-160.0,0.00030031,14]
[383937285,1757185846494,-160.0,0.00030031,14]
[383937287,1757185846512,-151.0,0.00030031,7]
[383937289,1757185846523,-160.0,0.00030031,14]
[383937291,1757185846533,-160.0,0.00030031,14]
[383937293,1757185846542,-160.0,0.00030031,14]
[383937295,1757185846551,-160.0,0.00030031,14]
[383937297,1757185846562,-160.0,0.00030031,14]
[383937299,1757185846572,-160.0,0.00030031,14]
[383937301,1757185846582,-160.0,0.00030031,14]
[383937303,1757185846591,-160.0,0.00030031,14]
[383937305,1757185846600,-160.0,0.00030031,14]
[383937307,1757185846610,-160.0,0.00030031,14]
[383937309,1757185846619,-160.0,0.00030031,14]
[383937311,1757185846628,-160.0,0.00030031,14]
[383937313,1757185846638,-160.0,0.00030031,14]
[383937315,1757185846648,-160.0,0.00030031,14]
[383937317,1757185846659,-160.0,0.00030031,14]
[383937319,1757185846677,-276.578529,0.00030031,14]
[383937321,1757185846687,-11429.0855531,0.0003012,2]
[383937323,1757185846697,-1418.50300609,0.0003012,2]
[383937325,1757185846707,-21634.99557546,0.0003013,2]
[383937327,1757185846717,-205.643086,0.00030137,7]
[383937329,1757185846727,-467.94026462,0.0003015,2]
[383937331,1757185846736,-500.0,0.00030186,5]
[383937333,1757185846746,-500.0,0.00030186,5]
[383937335,1757185846755,-500.0,0.00030186,5]
[383937337,1757185846765,-514.85095374,0.000302,7]
[383937339,1757185846775,-1096.0,0.00030283,3]
[383937341,1757185846784,-500.0,0.00030283,2]
[383937343,1757185846794,-1311.0,0.00030283,3]
[383937345,1757185846803,-321.50453344,0.00030283,3]
[383937347,1757185846812,-1354.0,0.00030283,3]
[383937349,1757185846822,-567.0,0.00030283,3]
[383937351,1757185846832,-1418.50300609,0.00030295,2]
[383937353,1757185846841,-196.796796,0.00030389,7]
[383937355,1757185846852,-236.42,0.00030392,30]
[383937357,1757185846861,-514.73,0.00030392,30]
[383937359,1757185846871,-346.18,0.000304,30]
[383937361,1757185846881,-11429.0855531,0.00030404,2]
[383937363,1757185846890,-160.237204,0.00030414,7]
[383937365,1757185846901,-151.0,0.00030414,7]
[383937367,1757185846911,-151.0,0.00030414,7]
[383937369,1757185846921,-151.0,0.00030414,7]
[383937371,1757185846930,-151.0,0.00030414,7]
[383937373,1757185846940,-151.0,0.00030414,7]
[383937375,1757185846949,-152.947538,0.00030414,7]
[383937377,1757185846958,-152.947538,0.00030414,7]
[383937379,1757185846968,-152.947538,0.00030414,7]
[383937381,1757185846978,-152.947538,0.00030414,7]
[383937383,1757185846987,-601.107018,0.00030414,7]
[383937385,1757185846997,-151.0,0.00030414,7]
[383937387,1757185847006,-601.107018,0.00030414,7]
[383937389,1757185847017,-151.0,0.00030414,7]
[383937391,1757185847026,-601.107018,0.00030414,7]
[383937393,1757185847036,-151.0,0.00030414,7]
[383937395,1757185847046,-151.0,0.00030414,7]
[383937396,1757185847056,-601.107018,0.00030414,7]
[383937397,1757185847065,-668.60164964,0.00030445,2]
[383937398,1757185847075,-4544.222326,0.00030482,7]
[383937399,1757185847084,-151.0,0.00030482,7]
[383937400,1757185847094,-4544.222326,0.00030482,7]
[383937401,1757185847103,-151.0,0.00030482,7]
[383937402,1757185847114,-4544.222326,0.00030482,7]
[383937403,1757185847124,-4544.222326,0.00030482,7]
[383937404,1757185847133,-151.0,0.00030492,7]
[383937405,1757185847143,-2500.0,0.00030492,3]
[383937406,1757185847152,-2500.0,0.00030492,3]
[383937407,1757185847162,-160.0,0.000305,7]
[383937408,1757185847171,-1040.24,0.000305,7]
[383937409,1757185847182,-234.21,0.00030502,2]
[383937410,1757185847192,-1096.0,0.00030557,3]
[383937411,1757185847201,-500.0,0.00030557,2]
[383937412,1757185847211,-1311.0,0.00030557,3]
[383937413,1757185847222,-1354.0,0.00030557,3]
[383937414,1757185847232,-567.0,0.00030557,3]
[383937415,1757185847241,-1418.50300609,0.00030569,2]
[383937416,1757185847251,-731.952873,0.00030579,7]
[383937417,1757185847261,-731.952873,0.00030579,7]
[383937418,1757185847270,-731.952873,0.00030579,7]
[383937419,1757185847279,-731.952873,0.00030579,7]
[383937420,1757185847288,-151.0,0.00030579,7]
[383937421,1757185847297,-302.97,0.00030585,2]
[383937422,1757185847307,-166.67,0.0003059,2]
[383937423,1757185847317,-1000.0,0.00030605,2]
[383937424,1757185847326,-234.21,0.00030611,2]
[383937425,1757185847335,-1322.0,0.00030611,2]
[383937426,1757185847344,-857.04385996,0.00030688,2]
[383937427,1757185849038,-573.82,0.00024215,2]
[383937428,1757185849048,-210.342464,0.00025478,7]
[383937429,1757185849059,-151.0,0.00027976,7]
[383937430,1757185849069,-250.0,0.00028868,2]
[383937431,1757185849080,-38.25579445,0.00030688,2]
[383937432,1757185849469,-151.0,0.00026173,2]
[383937433,1757185849479,-151.0,0.00026173,2]
[383937434,1757185849490,-861.30199,0.00030688,2]
[383937435,1757185849518,-1297.46854996,0.00030688,2]
[383937436,1757185850611,-8375.01535873,0.00030688,2]
[383937437,1757185850621,-1418.50300609,0.0003069,2]
[383937438,1757185850631,-152.811926,0.00030698,7]
[383937439,1757185850640,-192.936622,0.00030698,7]
[383937440,1757185850650,-192.936622,0.00030698,7]
[383937441,1757185850660,-192.936622,0.00030698,7]
[383937442,1757185850669,-192.936622,0.00030698,7]
[383937443,1757185850679,-1000.0,0.000307,2]
[383937444,1757185850690,-234.21,0.00030721,2]
[383937445,1757185850699,-374.0214835,0.00030734,5]
[383937446,1757185850709,-1000.0,0.00030734,5]
[383937447,1757185850719,-1967.77381763,0.00030754,14]
[383937448,1757185850729,-1096.0,0.0003083,3]
[383937449,1757185850739,-414.79614524,0.0003083,2]
[383937450,1757185850749,-1311.0,0.0003083,3]
[383937451,1757185850759,-1354.0,0.0003083,3]
[383937452,1757185850768,-567.0,0.0003083,3]
[383937453,1757185850778,-277.43540682,0.00030841,3]
[383937454,1757185850787,-11429.0855531,0.00030931,2]
[383937455,1757185850797,-151.0,0.00030941,7]
[383937456,1757185850807,-151.0,0.00030941,7]
[383937457,1757185850818,-151.0,0.00030941,7]
[383937458,1757185850827,-151.0,0.00030941,7]
[383937459,1757185850836,-151.0,0.00030941,7]
[383937460,1757185850845,-151.0,0.00030941,7]
[383937461,1757185850855,-731.952873,0.00030941,7]
[383937462,1757185850866,-731.952873,0.00030941,7]
[383937463,1757185850875,-731.952873,0.00030941,7]
[383937464,1757185850884,-731.952873,0.00030941,7]
[383937465,1757185850894,-151.0,0.00030941,7]
[383937466,1757185850903,-4544.222326,0.00030941,7]
[383937467,1757185850912,-151.0,0.00030941,7]
[383937468,1757185850922,-4200.05208455,0.00030941,7]
[383937469,1757185850934,-344.17024145,0.00030941,7]
[383937470,1757185850943,-151.0,0.00030941,7]
[383937471,1757185850952,-4544.222326,0.00030941,7]
[383937472,1757185850961,-4544.222323,0.00030941,7]
[383937473,1757185850971,-11348.0240487,0.00030942,2]
[383937474,1757185850980,-1418.50300609,0.00030942,2]
[383937475,1757185850990,-196.796796,0.00030949,7]
[383937476,1757185851000,-1418.50300609,0.00030951,2]
[383937477,1757185851011,-157368.30777933,0.00030952,2]
[383937478,1757185851079,-1352.4536881,0.00030952,2]
[383937479,1757185851227,-5530.0,0.00030952,2]
[383937480,1757185864559,1000.0,0.00023649,120]
[383937481,1757185864704,1000.0,0.00023498,120]
[383937482,1757186413587,-224.81,0.00031793,120]
[383937483,1757186413643,-224.81,0.0003193,120]
[383937484,1757186413812,-175.0,0.00032067,120]
[383937485,1757186708331,161.46,0.00027287,120]
[383937486,1757186708491,63.35,0.00030698,120]
[383937487,1757186708516,98.11,0.00030698,120]
[383937488,1757186710215,6083.93289012,0.000154,2]
[383937489,1757186746630,157.1,0.00012961,2]
[383937490,1757186746861,157.1,0.00014257,2]
[383937491,1757186747068,157.1,0.00015553,2]
[383937492,1757186747267,157.1,0.00016849,2]
[383937493,1757186747470,157.1,0.00018146,2]
[383937494,1757186747825,157.1,0.00019442,2]
[383937495,1757186854521,705.12359622,0.00016,2]
[383937496,1757186854894,353.54335374,0.000166,2]
[383937497,1757186858685,8281.58210128,0.00018,2]
[383937498,1757186858711,43521.02291536,0.00018,2]
[383937500,1757186895020,200.0,0.0001634,2]
[383937501,1757186905912,195.28626913,7.888e-05,2]
[383937504,1757186923116,1746.54346919,0.00010136,2]
[383937505,1757186927779,5431.97018227,0.0001,2]
[383937511,1757187031606,-1237.0,0.00020417,2]
[383937512,1757187031617,-500.0,0.0002052,2]
[383937513,1757187031626,-300.0,0.00020569,2]
[383937514,1757187031637,-195.0,0.00020569,2]
[383937515,1757187031646,-150.0,0.00020618,2]
[383937516,1757187031656,-300.0,0.00020715,2]
[383937517,1757187031666,-195.0,0.00020715,2]
[383937518,1757187031675,-157.1,0.00020738,2]
[383937519,1757187031684,-1200.0,0.00020849,2]
[383937520,1757187031693,-300.0,0.00020849,2]
[383937521,1757187031702,-12847.26364279,0.0002085,2]
[383937522,1757187031822,-23367.72601846,0.0002085,2]
[383937523,1757187031831,-1136.76077728,0.00021232,2]
[383937524,1757187031840,-157.1,0.00022034,2]
[383937525,1757187031850,-250.0,0.00022458,2]
[383937526,1757187031859,-1200.0,0.00022571,2]
[383937527,1757187031868,-1600.0,0.00022571,2]
[383937528,1757187031877,-150.0,0.00022572,2]
[383937529,1757187031888,-195.0,0.00022572,2]
[383937530,1757187031898,-250.0,0.00022572,2]
[383937531,1757187031907,-300.0,0.00022572,2]
[383937532,1757187031916,-300.0,0.00022572,2]
[383937533,1757187031926,-300.0,0.00022572,2]
[383937535,1757187031935,-300.0,0.00022572,2]
[383937537,1757187031944,-300.0,0.00022572,2]
[383937538,1757187031953,-300.0,0.00022572,2]
[383937540,1757187031963,-195.0,0.00022572,2]
[383937541,1757187031972,-250.0,0.00022572,2]
[383937542,1757187031982,-1680.0,0.0002279,2]
[383937543,1757187031991,-157.1,0.0002333,2]
[383937544,1757187032000,-723.0,0.00023406,2]
[383937545,1757187032010,-150.0,0.00023492,2]
[383937546,1757187032020,-4026.92,0.00023978,2]
[383937547,1757187032031,-5000.00156228,0.00024,5]
[383937548,1757187032040,-999.99,0.00024174,2]
[383937549,1757187032050,-150.99,0.00024174,2]
[383937550,1757187032059,-9999.99,0.00024174,2]
[383937551,1757187032068,-301.2,0.00024174,2]
[383937552,1757187032077,-150.99,0.00024174,2]
[383937553,1757187032087,-5000.0,0.00024277,2]
[383937554,1757187032097,-11930.57,0.00024423,2]
[383937555,1757187032106,-631.0,0.00024513,2]
[383937556,1757187032116,-157.1,0.00024626,2]
[383937557,1757187032125,-194.46,0.00024658,2]
[383937558,1757187032134,-601.77,0.00024866,2]
[383937559,1757187032143,-232.75370311,0.000249,2]
[383937560,1757187032152,-2143.08682831,0.000249,2]
[383937561,1757187032162,-2351.0,0.00024913,2]
[383937562,1757187032171,-626.71013218,0.00024952,5]
[383937563,1757187032180,-442.85745849,0.00024973,2]
[383937564,1757187032189,-500.0,0.00024973,2]
[383937565,1757187032199,-500.0,0.00024973,2]
[383937566,1757187032207,-152.37191228,0.00024973,2]
[383937567,1757187032216,-500.0,0.00024973,2]
[383937568,1757187032225,-500.0,0.00024973,2]
[383937569,1757187032234,-502.71613371,0.00024973,2]
[383937570,1757187032243,-500.0,0.00024973,2]
[383937571,1757187032253,-500.0,0.00024973,2]
[383937572,1757187032262,-500.0,0.00024973,2]
[383937573,1757187032271,-500.0,0.00024973,2]
[383937574,1757187032280,-849.22,0.0002498,2]
[383937575,1757187032289,-155.46,0.00024988,2]
[383937576,1757187032298,-381.3064912,0.00024989,2]
[383937577,1757187032308,-337.30866973,0.00024989,2]
[383937578,1757187032317,-500.0,0.00024989,2]
[383937579,1757187032327,-642.93928409,0.00024989,2]
[383937580,1757187032337,-500.0,0.00024989,2]
[383937581,1757187032346,-586.4167333,0.00024989,2]
[383937582,1757187032355,-586.4167333,0.00024989,2]
[383937583,1757187032365,-500.0,0.00024989,2]
[383937584,1757187032375,-500.0,0.00024989,2]
[383937585,1757187032384,-586.4167333,0.00024989,2]
[383937586,1757187032394,-500.0,0.00024989,2]
[383937587,1757187032404,-586.4167333,0.00024989,2]
[383937588,1757187032414,-500.0,0.00024989,2]
[383937589,1757187032424,-586.4167333,0.00024989,2]
[383937590,1757187032433,-500.0,0.00024989,2]
[383937591,1757187032442,-247.24413951,0.00024989,2]
[383937592,1757187032451,-586.4167333,0.00024989,2]
[383937593,1757187032460,-586.4167333,0.00024989,2]
[383937594,1757187032469,-619.99984779,0.00024989,2]
[383937595,1757187032478,-586.4167333,0.00024989,2]
[383937596,1757187032487,-586.4167333,0.00024989,2]
[383937597,1757187032497,-500.0,0.00024989,2]
[383937598,1757187032506,-586.4167333,0.00024989,2]
[383937599,1757187032515,-456.70085094,0.00024989,2]
[383937600,1757187032528,-129.71588236,0.00024989,2]
[383937601,1757187032537,-586.4167333,0.00024989,2]
[383937602,1757187032548,-586.4167333,0.00024989,2]
[383937603,1757187032557,-586.4167333,0.00024989,2]
[383937604,1757187032566,-247.3461633,0.00024989,2]
[383937605,1757187032578,-339.07057,0.00024989,2]
[383937606,1757187032588,-426.52037855,0.00024989,2]
[383937607,1757187032616,-159.89635475,0.00024989,2]
[383937608,1757187032626,-506.10364525,0.00024989,2]
[383937609,1757187032637,-80.31308805,0.00024989,2]
[383937610,1757187032648,-586.4167333,0.00024989,2]
[383937611,1757187032658,-586.4167333,0.00024989,2]
[383937612,1757187032667,-586.4167333,0.00024989,2]
[383937613,1757187032676,-586.4167333,0.00024989,2]
[383937614,1757187032943,-586.4167333,0.00024989,2]
[383937615,1757187032954,-586.4167333,0.00024989,2]
[383937616,1757187032963,-586.4167333,0.00024989,2]
[383937617,1757187032973,-586.4167333,0.00024989,2]
[383937618,1757187032982,-586.4167333,0.00024989,2]
[383937619,1757187032992,-586.4167333,0.00024989,2]
[383937620,1757187033001,-586.4167333,0.00024989,2]
[383937621,1757187033011,-586.4167333,0.00024989,2]